bitfinex-derivatives/quotes_BNBF0:USTF0_20250710
["timestamp","ask_amount","ask_price","bid_price","bid_amount"]
[1752107013529,2.22534093,670.23,669.55,1.687]
[1752107013930,2.22534093,670.28,669.56,1.66936457]
[1752107014730,2.22534093,670.27,669.57,1.66936457]
[1752107015530,2.22534093,670.3,669.59,1.66936457]
[1752107016326,2.22534093,670.31,669.59,1.66936457]
[1752107016730,2.22534093,670.31,669.6,1.66936457]
[1752107016927,2.22534093,670.29,669.6,1.66936457]
[1752107017129,2.22534093,670.3,669.6,1.66936457]
[1752107017427,2.22534093,670.35,669.66,1.66936457]
[1752107018225,2.22534093,670.35,669.65,1.66936457]
[1752107018926,2.4849533,670.52,669.55,1.687]
[1752107019131,0.25961237,670.52,669.55,1.687]
[1752107019427,2.4849533,670.52,669.55,1.687]
[1752107020230,0.25961237,670.52,669.55,1.687]
[1752107021725,2.4849533,670.52,669.55,1.687]
[1752107022732,0.25961237,670.52,669.55,1.687]
[1752107024234,2.4849533,670.52,669.55,1.687]
[1752107024735,2.22534093,670.49,669.55,1.687]
[1752107025335,2.22534093,670.49,669.5,0.25969568]
[1752107028036,2.22534093,670.5,669.5,0.25969568]
[1752107028835,2.22534093,670.42,669.52,1.66936457]
[1752107029238,2.22534093,670.36,669.57,1.66936457]
[1752107030137,2.22534093,670.35,669.57,1.66936457]
[1752107030338,2.22534093,670.35,669.58,1.66936457]
[1752107031238,2.22534093,670.36,669.57,1.66936457]
[1752107032134,0.25961237,670.52,669.63,1.66936457]
[1752107032135,2.22534093,670.41,669.63,1.66936457]
[1752107032540,2.22534093,670.39,669.64,1.66936457]
[1752107033140,2.22534093,670.43,669.61,1.66936457]
[1752107033334,2.22534093,670.42,669.62,1.66936457]
[1752107034338,2.22534093,670.42,669.63,1.66936457]
[1752107034536,2.22534093,670.41,669.63,1.66936457]
[1752107034836,2.22534093,670.43,669.62,1.66936457]
[1752107035136,2.22534093,670.43,669.61,1.66936457]
[1752107037241,2.22534093,670.42,669.61,1.66936457]
[1752107038136,2.22534093,670.42,669.62,1.66936457]
[1752107040044,2.22534093,670.42,669.61,1.66936457]
[1752107041045,2.22534093,670.41,669.62,1.66936457]
[1752107041246,2.22534093,670.43,669.61,1.66936457]
[1752107042347,2.22534093,670.42,669.6,1.66936457]
[1752107043145,2.22534093,670.4,669.62,1.66936457]
[1752107044349,2.22534093,670.4,669.61,1.66936457]
[1752107044547,2.22534093,670.38,669.63,1.66936457]
[1752107045151,2.22534093,670.31,669.57,1.66936457]
[1752107049153,2.22534093,670.3,669.58,1.66936457]
[1752107051156,2.22534093,670.29,669.59,1.66936457]
[1752107051356,0.25961237,670.52,669.51,1.725]
[1752107051357,2.22534093,670.23,669.54,1.66936457]
[1752107052054,2.22534093,670.24,669.54,1.66936457]
[1752107053455,2.22534093,670.23,669.54,1.66936457]
[1752107060565,2.22534093,670.25,669.53,1.66936457]
[1752107060963,2.22534093,670.22,669.55,1.66936457]
[1752107063364,2.22534093,670.21,669.55,1.66936457]
[1752107064671,2.22534093,670.22,669.55,1.66936457]
[1752107065968,2.22534093,670.21,669.55,1.66936457]
[1752107066271,2.22534093,670.42,669.51,1.725]
[1752107066568,2.22534093,670.41,669.51,1.725]
[1752107066767,0.25961237,670.52,669.54,1.66936457]
[1752107067970,0.25961237,670.52,669.55,1.66936457]
[1752107068172,2.4849533,670.52,669.55,1.66936457]
[1752107069173,2.4849533,670.52,669.56,1.775]
[1752107073176,2.22534093,670.51,669.56,3.44436457]
[1752107073572,2.4849533,670.52,669.56,1.775]
[1752107075576,2.22534093,670.49,669.58,1.66936457]
[1752107075875,2.22534093,670.4,669.64,1.66936457]
[1752107076083,2.22534093,670.39,669.66,1.66936457]
[1752107076378,2.22534093,670.38,669.67,1.66936457]
[1752107079077,2.22534093,670.46,669.75,1.66936457]
[1752107079279,2.22534093,670.47,669.76,1.66936457]
[1752107079477,0.25961237,670.52,669.56,1.775]
[1752107079478,2.22534093,670.48,669.75,1.66936457]
[1752107080377,2.22534093,670.49,669.74,1.66936457]
[1752107082582,2.22534093,670.5,669.74,1.66936457]
[1752107084384,2.22534093,670.5,669.59,2.21949924]
[1752107084385,2.22534093,670.5,669.73,1.66936457]
[1752107086088,2.22534093,670.46,669.77,1.66936457]
[1752107087488,2.22534093,670.46,669.76,1.66936457]
[1752107089892,2.22534093,670.44,669.78,1.66936457]
[1752107090091,2.22534093,670.45,669.78,1.66936457]
[1752107090389,2.22534093,670.57,669.69,1.66936457]
[1752107091489,2.22534093,670.6,669.68,1.66936457]
[1752107091989,2.22534093,670.69,669.77,1.66936457]
[1752107092490,2.22534093,670.71,669.87,1.66936457]
[1752107093401,2.22534093,670.74,669.86,1.66936457]
[1752107093597,2.22534093,670.75,669.86,1.66936457]
[1752107093797,2.22534093,670.82,669.93,1.66936457]
[1752107094297,2.48491167,670.83,669.92,1.66936457]
[1752107094493,0.25957074,670.83,669.92,1.66936457]
[1752107094996,0.25957074,670.83,669.56,1.775]
[1752107097494,0.25957074,670.83,669.98,1.6630247]
[1752107097698,0.25957074,670.83,670.01,1.6630247]
[1752107098199,0.25957074,670.83,670.04,1.6630247]
[1752107098697,0.25957074,670.83,670.03,1.6630247]
[1752107102697,2.22376684,671.13,669.98,1.6630247]
[1752107102902,0.25945946,670.95,669.98,1.6630247]
[1752107103700,0.25945946,670.95,669.56,1.775]
[1752107103701,0.25945946,670.95,669.94,1.6630247]
[1752107103907,2.22376684,671.22,669.94,1.6630247]
[1752107104203,0.25942368,671.11,669.94,1.6630247]
[1752107104405,0.25942368,671.11,669.9,1.6630247]
[1752107104707,0.25942368,671.11,669.91,1.6630247]
[1752107105410,0.25942368,671.11,669.9,1.6630247]
[1752107106607,0.25942368,671.11,669.7,2.21736626]
[1752107106807,0.25942368,671.11,669.91,1.65851068]
[1752107107107,0.25942368,671.11,669.86,1.65851068]
[1752107107905,0.25942368,671.11,669.84,1.65851068]
[1752107108304,0.25942368,671.11,669.84,1.65785304]
[1752107109608,0.25942368,671.11,669.83,1.65785304]
[1752107110208,0.25942368,671.11,669.71,1.49]
[1752107111805,0.25942368,671.11,670.01,1.65517048]
[1752107112710,0.25942368,671.11,670.02,1.65517048]
[1752107114219,0.25942368,671.11,670.04,1.65517048]
[1752107115515,0.25942368,671.11,670.05,1.65517048]
[1752107116910,0.25942368,671.11,670.08,1.65517048]
[1752107117812,0.25942368,671.11,670.12,1.65517048]
[1752107118312,0.25942368,671.11,670.09,1.65517048]
[1752107118511,0.25942368,671.11,670.1,1.65517048]
[1752107119519,0.25942368,671.11,670.12,1.65517048]
[1752107119820,0.25942368,671.11,670.09,1.65517048]
[1752107120321,0.25942368,671.11,670.11,1.65517048]
[1752107120921,0.25942368,671.11,670.13,1.65517048]
[1752107121318,0.25942368,671.11,670.12,1.65517048]
[1752107122724,0.25942368,671.11,670.13,1.65517048]
[1752107123220,0.25942368,671.11,670.12,1.65517048]
[1752107123824,0.25942368,671.11,670.13,1.65517048]
[1752107125329,0.25942368,671.11,670.12,1.65517048]
[1752107125528,0.25942368,671.11,670.13,1.65517048]
[1752107126629,0.25942368,671.11,670.14,1.65517048]
[1752107127927,0.25942368,671.11,670.12,1.65517048]
[1752107128130,0.25942368,671.11,670.13,1.65517048]
[1752107129433,0.25942368,671.11,670.15,1.65517048]
[1752107130134,0.25942368,671.11,670.16,1.65517048]
[1752107131341,0.25942368,671.11,670.15,1.65517048]
[1752107131736,0.25942368,671.11,670.18,1.65517048]
[1752107132435,0.25942368,671.11,670.22,1.65517048]
[1752107133330,0.25942368,671.11,670.19,1.65517048]
[1752107134533,0.25942368,671.11,670.17,1.65517048]
[1752107135934,0.25942368,671.11,670.16,1.65517048]
[1752107136138,0.25942368,671.11,670.15,1.65517048]
[1752107136734,0.25942368,671.11,670.14,1.65517048]
[1752107138443,0.25942368,671.11,670.15,1.65517048]
[1752107139341,0.25942368,671.11,670.13,1.65517048]
[1752107139537,0.25942368,671.11,670.14,1.65517048]
[1752107140939,0.25942368,671.11,670.15,1.822]
[1752107142141,0.25942368,671.11,670.15,3.47717048]
[1752107142344,0.25942368,671.11,670.15,1.822]
[1752107143141,0.25942368,671.11,670.15,3.47717048]
[1752107143545,0.25942368,671.11,670.16,1.65517048]
[1752107144345,0.25942368,671.11,670.17,1.65517048]
[1752107145342,0.25942368,671.11,670.18,1.65517048]
[1752107146046,0.25942368,671.11,670.19,1.65517048]
[1752107147543,0.25942368,671.11,670.2,1.65517048]
[1752107147846,0.25942368,671.11,670.15,1.822]
[1752107147847,0.25942368,671.11,670.18,1.65517048]
[1752107148047,0.25942368,671.11,670.17,1.65517048]
[1752107149345,0.25942368,671.11,670.2,1.65517048]
[1752107149548,2.21384779,671.07,670.15,3.47717048]
[1752107150345,2.21384779,671.05,670.15,3.47717048]
[1752107151346,2.21384779,671.0,670.15,3.47717048]
[1752107152250,2.21384779,670.99,670.16,1.65517048]
[1752107152450,2.21384779,670.97,670.16,1.65517048]
[1752107152647,2.21384779,670.96,670.15,1.822]
[1752107152846,2.21384779,670.94,670.15,1.822]
[1752107153449,2.21384779,670.92,670.15,1.822]
[1752107154449,2.21384779,670.91,670.15,1.822]
[1752107156352,2.21384779,670.93,670.15,1.822]
[1752107156851,2.21384779,670.92,670.15,1.822]
[1752107159253,2.21384779,670.91,670.15,1.822]
[1752107160254,2.21384779,670.9,670.15,1.822]
[1752107161050,2.21384779,670.9,670.14,1.65517048]
[1752107161655,2.21384779,670.92,670.13,1.65517048]
[1752107161852,2.21384779,670.91,670.13,1.65517048]
[1752107162056,2.21384779,670.91,670.14,1.65517048]
[1752107162453,2.21384779,670.93,670.12,1.65517048]
[1752107163355,2.21384779,670.93,670.13,3.70217048]
[1752107164256,2.21384779,670.92,670.13,3.70217048]
[1752107165554,2.21384779,670.93,670.13,3.70217048]
[1752107166258,2.21384779,670.92,670.14,1.65517048]
[1752107166554,2.21384779,670.91,670.14,1.65517048]
[1752107168056,3.32077169,671.06,670.13,2.047]
[1752107168260,2.23045661,670.91,670.14,1.66785881]
[1752107168465,0.25942368,671.11,670.13,2.047]
[1752107168661,2.23041456,670.91,670.14,1.66782743]
[1752107169261,2.23041456,670.91,670.15,1.66782743]
[1752107170357,2.23041456,670.9,670.15,1.66782743]
[1752107171261,2.23041456,670.92,670.14,1.66782743]
[1752107171459,2.23041456,670.91,670.14,1.66782743]
[1752107172262,2.23041456,670.89,670.16,1.66782743]
[1752107173067,2.23041456,670.89,670.13,2.047]
[1752107173068,2.23041456,670.9,670.15,1.66782743]
[1752107173463,2.23041456,670.9,670.13,2.047]
[1752107173758,2.23063161,670.9,670.15,1.66768663]
[1752107175759,2.23063161,670.97,670.15,1.66768663]
[1752107175962,2.23063161,670.98,670.16,1.66768663]
[1752107177363,2.23063161,670.98,670.17,1.66768663]
[1752107178462,2.23063161,670.99,670.16,1.66768663]
[1752107178666,2.23046018,671.01,670.19,1.66700737]
[1752107180367,2.23046018,671.0,670.2,1.66700737]
[1752107181567,2.23046018,671.0,670.21,1.66700737]
[1752107182370,2.23046018,670.99,670.21,1.66700737]
[1752107182674,2.23046018,671.0,670.21,1.66700737]
[1752107183371,2.23046018,670.99,670.21,1.66700737]
[1752107184478,2.23046018,670.97,670.23,1.66700737]
[1752107185577,2.23046018,670.95,670.24,1.66700737]
[1752107185980,2.23046018,670.94,670.25,1.66700737]
[1752107188180,2.23046018,670.94,670.13,2.047]
[1752107188181,2.23046018,670.9,670.28,1.66700737]
[1752107188574,2.23046018,670.91,670.27,1.66700737]
[1752107189480,2.23046018,670.91,670.28,1.66700737]
[1752107192584,2.23046018,670.89,670.29,1.66700737]
[1752107193379,2.23046018,670.95,670.24,1.66700737]
[1752107193582,2.23046018,670.95,670.25,1.66700737]
[1752107193980,2.23046018,670.95,670.24,1.66700737]
[1752107194282,2.23046018,670.95,670.25,1.66700737]
[1752107198385,2.23046018,670.94,670.25,1.66700737]
[1752107201291,2.23046018,670.94,670.26,1.66700737]
[1752107202292,2.23046018,670.93,670.26,1.66700737]
[1752107202789,2.23046018,670.93,670.3,1.66700737]
[1752107202991,2.23046018,670.89,670.3,1.66700737]
[1752107203892,2.23046018,670.88,670.3,1.66700737]
[1752107204489,2.23046018,670.88,670.19,2.22267649]
[1752107204490,2.23046018,670.89,670.29,1.66700737]
[1752107205295,2.23046018,670.89,670.3,1.66700737]
[1752107205696,2.23046018,670.88,670.3,1.66700737]
[1752107206994,2.23046018,670.89,670.3,1.66700737]
[1752107208597,2.23046018,670.9,670.29,1.66700737]
[1752107212702,2.23046018,670.89,670.29,1.66700737]
[1752107212897,2.23046018,670.9,670.29,1.66700737]
[1752107214602,2.23046018,670.89,670.3,1.66700737]
[1752107216602,2.23046018,670.89,670.29,1.66700737]
[1752107216902,2.23046018,670.88,670.3,1.66700737]
[1752107217905,2.23046018,670.89,670.29,1.66700737]
[1752107218605,2.23046018,670.88,670.3,1.66700737]
[1752107219304,2.23046018,670.89,670.3,1.66700737]
[1752107220100,2.23046018,670.94,670.26,1.66700737]
[1752107220609,2.23046018,670.94,670.27,2.281]
[1752107222204,2.23046018,670.93,670.27,2.281]
[1752107223404,2.23046018,670.95,670.27,2.281]
[1752107223708,2.23046018,670.99,670.27,2.281]
[1752107223907,2.23046018,670.98,670.27,2.281]
[1752107224208,2.23046018,671.0,670.27,2.281]
[1752107224403,2.23046018,670.99,670.27,2.281]
[1752107225810,2.23046018,670.96,670.27,2.281]
[1752107226210,2.23046018,670.92,670.27,2.281]
[1752107226613,2.23046018,670.91,670.27,2.281]
[1752107227312,2.23046018,670.92,670.27,2.281]
[1752107227813,2.23046018,670.84,670.27,2.281]
[1752107228409,0.25942368,671.11,670.27,2.281]
[1752107228410,2.23046018,670.79,670.27,2.281]
[1752107228714,2.23046018,670.77,670.27,2.281]
[1752107229116,2.23046018,670.76,670.27,2.281]
[1752107229411,2.23046018,670.69,670.27,2.281]
[1752107230016,2.23046018,670.71,670.27,2.281]
[1752107230215,2.23046018,670.73,670.27,2.281]
[1752107231316,2.23046018,670.74,670.27,2.281]
[1752107232513,2.23046018,670.75,670.27,2.281]
[1752107233017,2.23046018,670.76,670.27,2.281]
[1752107233512,2.23046018,670.77,670.27,2.281]
[1752107235618,2.23046018,670.75,670.27,2.281]
[1752107236118,2.23046018,670.74,670.27,2.281]
[1752107236318,2.23046018,670.75,670.27,2.281]
[1752107237214,2.23046018,670.74,670.27,2.281]
[1752107238218,2.23046018,670.75,670.27,2.281]
[1752107238715,2.23046018,670.77,670.27,2.281]
[1752107239314,2.23046018,670.78,670.27,2.281]
[1752107240219,2.23046018,670.79,670.27,2.281]
[1752107241318,2.23046018,670.8,670.27,2.281]
[1752107242814,2.23046018,670.79,670.27,2.281]
[1752107243628,2.23046018,670.8,670.27,2.281]
[1752107245215,2.23046018,670.81,670.27,2.281]
[1752107247320,2.23046018,670.82,670.27,2.281]
[1752107248621,2.23046018,670.8,669.97,1.6684917]
[1752107249020,2.23046018,670.81,669.97,1.6684917]
[1752107249718,2.23046018,670.8,669.98,1.6684917]
[1752107250421,2.23046018,670.81,669.98,1.6684917]
[1752107250620,2.23046018,670.8,669.98,1.6684917]
[1752107251122,2.23046018,670.84,669.95,1.6684917]
[1752107252224,2.23046018,670.87,669.93,1.6684917]
[1752107259327,2.23046018,670.87,669.94,1.6684917]
[1752107260225,2.23046018,670.86,669.94,1.6684917]
[1752107261133,2.23046018,670.84,669.95,1.6684917]
[1752107261631,2.23046018,670.9,669.91,1.6684917]
[1752107262131,2.23046018,671.01,669.81,1.6684917]
[1752107262334,2.23046018,671.03,669.78,1.6684917]
[1752107262828,2.23046018,671.05,669.81,1.6684917]
[1752107263138,2.23046018,671.05,669.77,0.25946526]
[1752107263139,2.23046018,670.95,669.89,1.6684917]
[1752107263335,2.23046018,671.0,669.88,1.6684917]
[1752107263539,2.23046018,671.0,669.93,1.6684917]
[1752107263839,2.23046018,670.94,669.87,1.6684917]
[1752107264335,2.23046018,670.78,669.77,0.25946526]
[1752107265235,2.23046018,670.75,669.77,0.25946526]
[1752107266435,2.23046018,670.71,669.77,0.25946526]
[1752107267040,2.23046018,670.7,669.77,0.25946526]
[1752107267236,2.23046018,670.68,669.77,0.25946526]
[1752107268237,2.23046018,670.69,669.77,0.25946526]
[1752107269342,2.23046018,670.7,669.77,0.25946526]
[1752107270239,2.23046018,670.71,669.77,0.25946526]
[1752107271143,3.34562184,670.88,669.78,1.51207945]
[1752107271339,3.34562184,670.88,669.79,1.51207945]
[1752107271538,3.34562184,670.88,669.8,1.51207945]
[1752107271742,3.34562184,670.88,669.81,1.51207945]
[1752107271943,3.34562184,670.88,669.82,1.51207945]
[1752107272242,3.34562184,670.88,669.83,1.51207945]
[1752107272442,3.34562184,670.88,669.84,1.51207945]
[1752107272739,3.34562184,670.88,669.85,1.51207945]
[1752107272939,3.34562184,670.88,669.86,1.51207945]
[1752107273142,3.34562184,670.86,669.87,1.51207945]
[1752107273342,3.34562184,670.87,669.88,1.51207945]
[1752107273545,3.34562184,670.86,669.89,1.51207945]
[1752107273744,3.34562184,670.86,669.9,1.51207945]
[1752107273948,3.34562184,670.86,669.91,1.51207945]
[1752107274244,3.34562184,670.87,669.92,1.51207945]
[1752107274442,3.34562184,670.86,669.93,1.51207945]
[1752107274643,3.34562184,670.86,669.94,1.51207945]
[1752107274844,3.34562184,670.86,669.95,1.51207945]
[1752107275044,3.34562184,670.86,669.96,1.51207945]
[1752107275246,3.34562184,670.85,669.97,1.51207945]
[1752107275446,3.34562184,670.85,669.98,1.51207945]
[1752107275644,3.34562184,670.84,669.99,1.51207945]
[1752107275947,3.34562184,670.84,669.77,0.25946526]
[1752107276142,3.34562184,670.83,669.78,1.51189519]
[1752107276347,3.34562184,670.82,669.79,1.51189519]
[1752107276643,3.34562184,670.82,669.8,1.51189519]
[1752107276945,3.34562184,670.84,669.81,1.51189519]
[1752107277146,3.34562184,670.85,669.82,1.51189519]
[1752107277346,3.34562184,670.85,669.83,1.51189519]
[1752107277543,3.34562184,670.85,669.84,1.51189519]
[1752107277846,0.25942368,671.11,669.85,1.51189519]
[1752107277847,3.34562184,670.79,669.85,1.51189519]
[1752107278047,3.34562184,670.79,669.86,1.51189519]
[1752107278346,3.34562184,670.79,669.87,1.51189519]
[1752107278645,3.34562184,670.78,669.88,1.51189519]
[1752107278944,3.34562184,670.78,669.89,1.51189519]
[1752107279143,3.34562184,670.78,669.9,1.51189519]
[1752107279342,3.34562184,670.77,669.91,1.51189519]
[1752107279646,3.34562184,670.77,669.92,1.51189519]
[1752107279843,3.34562184,670.77,669.93,1.51189519]
[1752107280042,3.34562184,670.77,669.77,0.25946526]
[1752107280247,3.34562184,670.79,669.78,1.51238274]
[1752107280444,3.34562184,670.79,669.79,1.51238274]
[1752107280645,3.34562184,670.79,669.8,1.51238274]
[1752107280847,3.34562184,670.79,669.81,1.51238274]
[1752107281047,3.34562184,670.79,669.82,1.51238274]
[1752107281246,3.34562184,670.77,669.83,1.51238274]
[1752107281547,3.34562184,670.78,669.84,1.51238274]
[1752107281747,3.34562184,670.77,669.85,1.51238274]
[1752107281947,3.34562184,670.77,669.86,1.51238274]
[1752107282149,3.34562184,670.77,669.87,1.51238274]
[1752107282454,3.34562184,670.77,669.88,1.51238274]
[1752107282651,3.34562184,670.78,669.89,1.51238274]
[1752107282850,3.34562184,670.78,669.9,1.51238274]
[1752107283049,3.34562184,670.78,669.91,1.51238274]
[1752107283250,0.25942368,671.11,669.77,0.25946526]
[1752107283251,3.34562184,670.75,669.77,0.25946526]
[1752107283454,3.34562184,670.75,669.78,1.51279628]
[1752107283653,3.34562184,670.75,669.79,1.51279628]
[1752107283954,3.34562184,670.75,669.8,1.51279628]
[1752107284150,3.34562184,670.74,669.81,1.51279628]
[1752107284353,3.34562184,670.75,669.82,1.51279628]
[1752107284553,3.34562184,670.75,669.83,1.51279628]
[1752107284750,3.34562184,670.75,669.84,1.51279628]
[1752107284955,3.34562184,670.72,669.85,1.51279628]
[1752107285151,3.34562184,670.71,669.86,1.51279628]
[1752107285457,3.34562184,670.73,669.87,1.51279628]
[1752107285654,3.34562184,670.73,669.88,1.51279628]
[1752107285950,3.34562184,670.73,669.77,0.25946526]
[1752107286153,3.34562184,670.73,669.78,1.51316057]
[1752107286353,3.34562184,670.72,669.79,1.51316057]
[1752107286553,3.34562184,670.7,669.8,1.51316057]
[1752107286752,3.34562184,670.7,669.81,1.51316057]
[1752107286956,3.34562184,670.7,669.82,1.51316057]
[1752107287155,3.34562184,670.67,669.83,1.51316057]
[1752107287356,3.34562184,670.68,669.84,1.51316057]
[1752107287557,3.34562184,670.68,669.85,1.51316057]
[1752107287753,3.34562184,670.68,669.86,1.51316057]
[1752107288057,3.34562184,670.68,669.87,1.51316057]
[1752107288357,3.34562184,670.68,669.88,1.51316057]
[1752107288656,3.34562184,670.68,669.77,0.25946526]
[1752107288954,3.34562184,670.68,669.78,1.51347511]
[1752107289156,3.34562184,670.68,669.79,1.51347511]
[1752107289353,3.34562184,670.68,669.8,1.51347511]
[1752107289654,3.34562184,670.68,669.81,1.51347511]
[1752107289855,3.34562184,670.68,669.82,1.51347511]
[1752107290057,3.34562184,670.68,669.83,1.51347511]
[1752107290258,3.34562184,670.66,669.84,1.51347511]
[1752107290558,3.34562184,670.67,669.85,1.51347511]
[1752107290753,3.34562184,670.67,669.77,0.25946526]
[1752107290754,3.34562184,670.67,669.86,1.51347511]
[1752107290956,3.34562184,670.69,669.87,1.51347511]
[1752107291260,3.34562184,670.69,669.65,0.25963077]
[1752107291461,3.34562184,670.7,669.66,1.51296287]
[1752107291757,3.34562184,670.7,669.67,1.51296287]
[1752107291962,3.34562184,670.69,669.68,1.51296287]
[1752107292156,3.34562184,670.69,669.69,1.51296287]
[1752107292359,3.34562184,670.7,669.7,1.51296287]
[1752107292560,3.34562184,670.7,669.71,1.51296287]
[1752107292760,3.34562184,670.7,669.72,1.51296287]
[1752107292958,3.34562184,670.7,669.73,1.51296287]
[1752107293158,3.34562184,670.69,669.74,1.51296287]
[1752107293361,3.34562184,670.7,669.75,1.51296287]
[1752107293561,3.34562184,670.7,669.76,1.51296287]
[1752107293767,3.34562184,670.7,669.77,1.51296287]
[1752107293963,3.34562184,670.7,669.78,1.51296287]
[1752107294161,3.34562184,670.7,669.79,1.51296287]
[1752107294364,3.34562184,670.7,669.8,1.51296287]
[1752107294567,3.34562184,670.7,669.81,1.51296287]
[1752107294864,3.34562184,670.7,669.82,1.51296287]
[1752107295067,3.34562184,670.7,669.83,1.51296287]
[1752107295267,3.34562184,670.69,669.84,1.51296287]
[1752107295465,3.34562184,670.7,669.85,1.51296287]
[1752107295672,3.34562184,670.7,669.86,1.51296287]
[1752107295866,3.34562184,670.7,669.87,1.51296287]
[1752107296069,3.34562184,670.71,669.69,1.52]
[1752107296265,3.34562184,670.73,669.7,1.51261237]
[1752107296464,3.34562184,670.73,669.71,1.51261237]
[1752107296669,3.34562184,670.73,669.72,1.51261237]
[1752107296970,3.34562184,670.86,669.73,1.51261237]
[1752107297170,3.34562184,670.86,669.74,1.51261237]
[1752107297366,3.34562184,670.87,669.75,1.51261237]
[1752107297569,3.34562184,670.87,669.76,1.51261237]
[1752107297773,3.34562184,670.87,669.77,1.51261237]
[1752107297968,3.34562184,670.87,669.78,1.51261237]
[1752107298166,3.34562184,670.87,669.79,1.51261237]
[1752107298468,3.34562184,670.86,669.8,1.51261237]
[1752107298671,3.34562184,670.86,669.81,1.51261237]
[1752107298972,3.34562184,670.86,669.82,1.51261237]
[1752107299169,3.34562184,670.86,669.83,1.51261237]
[1752107299369,3.34562184,670.86,669.84,1.51261237]
[1752107299672,3.34562184,670.86,669.85,1.51261237]
[1752107299869,3.34562184,670.86,669.86,1.51261237]
[1752107300172,3.34562184,670.86,669.87,1.51261237]
[1752107300373,3.34562184,670.86,669.69,1.52]
[1752107300572,3.34562184,670.86,669.7,1.51241334]
[1752107300770,3.34562184,670.83,669.71,1.51241334]
[1752107301068,3.34562184,670.76,669.72,1.51241334]
[1752107301273,2.2244019,670.56,669.69,1.52]
[1752107301470,2.2244019,670.45,669.69,1.52]
[1752107301676,2.2244019,670.43,669.69,1.52]
[1752107301971,2.2244019,670.42,669.69,1.52]
[1752107302371,2.2244019,670.46,669.69,1.52]
[1752107304478,0.25969374,670.27,669.69,1.52]
[1752107305376,0.25969374,670.27,669.53,1.6684917]
[1752107305778,0.25969374,670.27,669.51,0.25965596]
[1752107307978,0.25969374,670.27,669.52,1.786]
[1752107327988,0.25969374,670.27,669.51,0.25965596]
[1752107330691,0.25969374,670.27,669.52,1.866]
[1752107334801,2.2244019,670.24,669.52,1.866]
[1752107335399,2.2244019,670.25,669.52,1.866]
[1752107337204,2.2244019,670.24,669.52,1.866]
[1752107337405,2.2244019,670.25,669.52,1.866]
[1752107337606,2.2244019,670.22,669.52,1.866]
[1752107338302,2.2244019,670.23,669.52,1.866]
[1752107339207,2.2244019,670.22,669.52,1.866]
[1752107339408,2.2244019,670.23,669.52,1.866]
[1752107341308,2.2244019,670.24,669.52,1.866]
[1752107341613,2.2244019,670.23,669.52,1.866]
[1752107342309,2.2244019,670.24,669.52,1.866]
[1752107343809,2.2244019,670.23,669.52,1.866]
[1752107344009,2.2244019,670.16,669.52,1.866]
[1752107344211,2.2244019,670.17,669.52,1.866]
[1752107345608,2.2244019,670.16,669.52,1.866]
[1752107346506,2.2244019,670.15,669.52,1.866]
[1752107347113,2.2244019,670.16,669.52,1.866]
[1752107347308,2.2244019,670.15,669.52,1.866]
[1752107348213,2.2244019,670.14,669.52,1.866]
[1752107348408,2.2244019,670.15,669.52,1.866]
[1752107349311,2.2244019,670.14,669.52,1.866]
[1752107349815,2.2244019,670.12,669.52,1.866]
[1752107350316,2.2244019,670.11,669.52,1.866]
[1752107350615,2.2244019,670.12,669.52,1.866]
[1752107350815,2.2244019,670.11,669.52,1.866]
[1752107351115,2.2244019,670.12,669.52,1.866]
[1752107351315,2.2244019,670.11,669.52,1.866]
[1752107352116,2.2244019,670.12,669.52,1.866]
[1752107352411,3.34562184,670.24,669.52,1.866]
[1752107352412,2.2244019,670.11,669.52,1.866]
[1752107354012,2.2244019,670.09,669.52,1.866]
[1752107354312,2.2244019,670.08,669.52,1.866]
[1752107355213,2.2244019,670.11,669.52,1.866]
[1752107356316,2.2244019,670.1,669.52,1.866]
[1752107356516,2.2244019,670.09,669.52,1.866]
[1752107356721,2.2244019,670.12,669.52,1.866]
[1752107357416,2.2244019,670.11,669.52,1.866]
[1752107358419,2.2244019,670.1,669.52,1.866]
[1752107359320,2.2244019,670.09,669.52,1.866]
[1752107360221,2.2244019,670.08,669.52,1.866]
[1752107361320,2.2244019,670.07,669.52,1.866]
[1752107363317,2.2244019,670.06,669.52,1.866]
[1752107366522,2.2244019,670.04,669.52,1.866]
[1752107367016,2.2244019,670.05,669.52,1.866]
[1752107368323,2.2244019,670.06,669.52,1.866]
[1752107368725,2.2244019,670.08,669.52,1.866]
[1752107369018,0.25969374,670.27,669.52,1.866]
[1752107369518,3.34562184,670.24,669.52,1.866]
[1752107369724,2.2244019,670.08,669.52,1.866]
[1752107370022,2.2244019,670.06,669.52,1.866]
[1752107370423,0.25969374,670.27,669.52,1.866]
[1752107370424,2.2244019,670.07,669.52,1.866]
[1752107370924,2.2244019,669.84,669.52,1.866]